bitfinex/quotes_SOLUSD_20250805
["timestamp","ask_amount","ask_price","bid_price","bid_amount"]
[1754396540937,9.94888754,169.73,169.7,5.89271324]
[1754396541106,9.94888754,169.73,169.68,53.63888754]
[1754396541431,9.94888754,169.73,169.69,0.71]
[1754396541598,9.94888754,169.73,169.7,6.60275191]
[1754396541798,9.94888754,169.73,169.7,0.71]
[1754396542029,0.6,169.72,169.65,9.41890211]
[1754396542327,0.6,169.72,169.65,10.12890211]
[1754396542508,35.94888754,169.72,169.66,0.71]
[1754396542823,26.0,169.72,169.66,0.71]
[1754396543209,9.94888754,169.7,169.65,15.31327882]
[1754396543401,26.0,169.72,169.65,10.12890211]
[1754396543402,9.94888754,169.69,169.65,10.12890211]
[1754396543603,9.94888754,169.66,169.65,9.41890211]
[1754396543805,10.54888754,169.66,169.65,9.47890211]
[1754396544124,10.0,169.75,169.65,9.47890211]
[1754396544125,9.94888754,169.73,169.65,59.14326051]
[1754396544325,26.0,169.73,169.65,68.38212795]
[1754396544544,0.6,169.77,169.7,9.94888754]
[1754396544701,158.14888754,169.76,169.71,0.71]
[1754396544901,148.2,169.75,169.72,0.71]
[1754396545102,0.03,169.79,169.74,9.94888754]
[1754396545328,0.03,169.79,169.75,0.71]
[1754396545631,5.8903222,169.77,169.65,24.21512374]
[1754396545807,9.94888754,169.69,169.67,0.71]
[1754396546008,10.54888754,169.68,169.65,9.47890211]
[1754396546211,9.94888754,169.66,169.65,9.47890211]
[1754396546438,10.54888754,169.66,169.65,9.37890211]
[1754396546601,26.0,169.62,169.55,0.71]
[1754396546805,0.5,169.63,169.55,0.71]
[1754396547015,0.5,169.69,169.6,9.94888754]
[1754396547327,26.0,169.7,169.61,0.71]
[1754396547529,26.0,169.7,169.63,9.94888754]
[1754396547730,9.94888754,169.67,169.62,16.55441872]
[1754396548026,9.94888754,169.68,169.62,16.55441872]
[1754396548219,31.89282165,169.7,169.62,10.65888754]
[1754396548399,35.94888754,169.7,169.65,9.94888754]
[1754396548603,35.94888754,169.7,169.66,0.71]
[1754396548825,35.94888754,169.7,169.61,20.63553982]
[1754396549028,9.94888754,169.69,169.64,10.63888754]
[1754396549226,9.94888754,169.68,169.64,0.69]
[1754396549531,26.0,169.71,169.65,9.94888754]
[1754396549749,9.94888754,169.7,169.64,16.53349566]
[1754396549940,31.89241207,169.71,169.64,0.69]
[1754396549941,26.0,169.71,169.64,0.69]
[1754396550120,9.94888754,169.72,169.66,9.94888754]
[1754396550313,9.94888754,169.71,169.66,0.69]
[1754396550514,26.0,169.71,169.66,0.69]
[1754396550710,26.0,169.71,169.67,0.69]
[1754396550913,26.0,169.71,169.68,0.69]
[1754396551216,9.94888754,169.74,169.69,0.69]
[1754396551431,6.3903222,169.77,169.7,0.69]
[1754396551622,6.3903222,169.77,169.65,43.58]
[1754396551623,15.84027395,169.74,169.67,0.69]
[1754396551815,9.94888754,169.74,169.68,9.94888754]
[1754396552521,15.84043826,169.74,169.67,0.69]
[1754396552835,6.39155072,169.74,169.66,0.69]
[1754396553032,9.94888754,169.71,169.66,10.63888754]
[1754396553237,9.94888754,169.73,169.68,9.94888754]
[1754396553531,9.94888754,169.74,169.69,10.63888754]
[1754396553733,9.94888754,169.74,169.64,0.14216157]
[1754396553734,15.84032558,169.74,169.7,0.69]
[1754396553938,9.94888754,169.73,169.68,9.94888754]
[1754396554115,9.94888754,169.73,169.68,10.63888754]
[1754396554313,9.94888754,169.72,169.65,0.69]
[1754396554523,9.94888754,169.72,169.67,9.94888754]
[1754396554724,9.94888754,169.7,169.65,0.69]
[1754396554914,31.89143804,169.74,169.63,43.56]
[1754396554915,9.94888754,169.66,169.63,43.56]
[1754396555125,9.94888754,169.64,169.59,0.69]
[1754396555446,0.5,169.65,169.56,44.25]
[1754396555619,5.89553118,169.62,169.56,50.14750378]
[1754396556134,26.5,169.61,169.5,44.29]
[1754396556321,26.5,169.61,169.47,5.90074939]
[1754396556322,26.0,169.59,169.47,5.90074939]
[1754396556521,0.5,169.58,169.47,5.90074939]
[1754396556850,0.5,169.58,169.48,9.94888754]
[1754396557026,26.0,169.57,169.46,44.32]
[1754396557217,26.0,169.53,169.45,6.59112984]
[1754396557420,26.0,169.53,169.45,16.54001738]
[1754396557723,0.5,169.54,169.45,6.59112984]
[1754396557935,9.94888754,169.5,169.45,0.69]
[1754396558146,0.5,169.54,169.45,0.69]
[1754396558523,31.8979652,169.55,169.45,0.69]
[1754396558726,14.94494073,169.51,169.45,0.69]
[1754396559032,14.94494073,169.47,169.45,0.69]
[1754396559341,0.5,169.5,169.42,51.65246995]
[1754396559544,26.0,169.51,169.43,0.69]
[1754396559720,14.94494073,169.48,169.44,5.90179414]
[1754396559925,14.94494073,169.48,169.43,6.59211108]
[1754396560130,26.0,169.51,169.44,0.69]
[1754396560434,14.94494073,169.46,169.42,45.06]
[1754396560647,26.0,169.51,169.42,45.06]
[1754396560815,0.5,169.49,169.4,21.53779324]
[1754396561015,14.94494073,169.46,169.41,0.69]
[1754396561249,0.5,169.5,169.41,0.69]
[1754396561845,14.94494073,169.48,169.42,5.90249085]
[1754396562030,14.94494073,169.47,169.43,0.69]
[1754396562229,0.5,169.5,169.37,45.42]
[1754396562420,14.94494073,169.43,169.38,14.94494073]
[1754396562618,0.5,169.46,169.36,20.66603683]
[1754396562923,26.0,169.48,169.38,15.63494073]
[1754396563130,26.0,169.48,169.39,0.69]
[1754396563468,0.5,169.47,169.39,0.69]
[1754396563620,14.94494073,169.43,169.39,0.69]
[1754396564035,14.94494073,169.43,169.4,0.69]
[1754396564330,31.90174083,169.45,169.36,5.90458195]
[1754396564536,14.94494073,169.4,169.36,5.90458195]
[1754396564852,14.94494073,169.4,169.34,9.31890211]
[1754396564853,40.94494073,169.37,169.34,9.31890211]
[1754396565150,14.94494073,169.35,169.34,9.31890211]
[1754396565322,15.34494073,169.35,169.34,9.31890211]
[1754396565528,26.0,169.37,169.34,9.31890211]
[1754396565742,14.94494073,169.37,169.34,9.31890211]
[1754396566159,0.4,169.36,169.34,9.31890211]
[1754396566469,26.0,169.39,169.34,9.31890211]
[1754396566761,15.10621557,169.4,169.34,9.31890211]
[1754396566923,0.4,169.38,169.34,9.31890211]
[1754396567129,14.94494073,169.35,169.34,9.31890211]
[1754396567530,15.34494073,169.35,169.34,9.31890211]
[1754396567751,21.24987134,169.35,169.34,9.31890211]
[1754396568430,26.0,169.32,169.21,0.69]
[1754396568659,14.94494073,169.24,169.21,0.67]
[1754396569363,0.32,169.33,169.22,14.94494073]
[1754396569531,14.94494073,169.31,169.25,14.94494073]
[1754396569738,14.94494073,169.32,169.27,5.90772139]
[1754396569942,17.742555,169.41,169.27,5.90772139]
[1754396569943,14.94494073,169.34,169.27,5.90772139]
[1754396570147,6.22320541,169.4,169.27,20.67702486]
[1754396570345,14.94494073,169.35,169.29,14.94494073]
[1754396570543,14.94494073,169.36,169.3,0.69]
[1754396570757,14.94494073,169.37,169.31,14.94494073]
[1754396571062,14.94494073,169.37,169.32,0.69]
[1754396571261,14.94494073,169.37,169.33,0.69]
[1754396571460,5.90288224,169.41,169.29,0.69]
[1754396571461,14.94494073,169.34,169.29,0.69]
[1754396571663,14.94494073,169.33,169.3,0.69]
[1754396571853,14.94494073,169.4,169.25,26.0]
[1754396571854,14.94494073,169.35,169.31,6.59632567]
[1754396572432,5.90359266,169.39,169.32,0.69]
[1754396572662,14.94494073,169.36,169.32,0.69]
[1754396572961,14.94494073,169.39,169.33,15.63494073]
[1754396573336,14.94494073,169.34,169.29,0.69]
[1754396573579,14.94494073,169.3,169.27,5.90772139]
[1754396573754,14.94494073,169.3,169.27,6.59772139]
[1754396574068,5.9053235,169.34,169.24,0.69]
[1754396574271,6.2253235,169.34,169.24,0.69]
[1754396574480,0.32,169.37,169.25,14.94494073]
[1754396574637,14.94494073,169.32,169.26,0.69]
[1754396574973,14.94494073,169.28,169.26,0.69]
[1754396575469,14.94494073,169.29,169.26,0.69]
[1754396575766,14.94494073,169.29,169.23,20.85405849]
[1754396575978,14.94494073,169.29,169.24,0.69]
[1754396576200,14.94494073,169.29,169.25,0.69]
[1754396576385,5.90605041,169.32,169.25,0.69]
[1754396576582,14.94494073,169.3,169.24,15.63494073]
[1754396576782,14.94494073,169.3,169.25,14.94494073]
[1754396576998,14.94494073,169.3,169.26,0.69]
[1754396577472,6.2253466,169.34,169.25,14.94494073]
[1754396577672,14.94494073,169.3,169.26,0.69]
[1754396577877,26.0,169.26,169.12,78.15966753]
[1754396578082,26.0,169.23,169.08,0.69]
[1754396578278,14.94494073,169.12,169.08,0.69]
[1754396578679,14.94494073,169.14,169.09,0.69]
[1754396579068,26.0,169.23,169.07,46.71]
[1754396579069,0.32,169.18,169.07,46.71]
[1754396579411,14.94494073,169.14,169.08,15.65494073]
[1754396579995,14.94494073,169.12,169.07,51.91468039]
[1754396580193,26.0,169.2,169.08,0.71]
[1754396580422,14.94494073,169.12,169.08,0.71]
[1754396580573,14.94494073,169.09,169.05,0.71]
[1754396580904,14.94494073,169.07,169.03,9.41890211]
[1754396581078,14.94494073,169.08,169.05,0.71]
[1754396581412,14.94494073,169.06,169.03,9.41890211]
[1754396581611,14.94494073,169.08,169.03,15.33495959]
[1754396581778,14.94494073,169.08,169.04,0.71]
[1754396582102,14.94494073,169.08,169.05,0.71]
[1754396582289,5.91333135,169.11,169.03,9.41890211]
[1754396582290,14.94494073,169.06,169.03,9.41890211]
[1754396582594,14.94494073,169.04,169.03,9.41890211]
[1754396582806,15.26494073,169.04,169.03,9.41890211]
[1754396582989,15.4071023,169.04,169.03,1e-08]
[1754396583308,15.26494073,169.04,168.92,14.94494073]
[1754396583468,17.777251,169.08,168.93,0.71]
[1754396583671,14.94494073,169.03,168.97,14.94494073]
[1754396583877,14.94494073,169.03,168.87,29.6082366]
[1754396583878,5.91821033,168.97,168.81,0.71]
[1754396584076,14.94494073,168.86,168.81,0.71]
[1754396584415,20.71373616,168.97,168.85,8.99513319]
[1754396584574,14.94494073,168.86,168.81,46.98]
[1754396584777,14.94494073,168.84,168.8,23.70233371]
[1754396584983,14.94494073,168.85,168.8,24.41233371]
[1754396585200,14.94494073,168.84,168.8,17.778304]
[1754396585370,0.14216157,168.94,168.8,17.778304]
[1754396585371,14.94494073,168.86,168.81,0.71]
[1754396585575,14.94494073,168.88,168.82,14.94494073]
[1754396585902,14.94494073,168.86,168.82,5.92346878]
[1754396586082,14.94494073,168.85,168.82,5.92346878]
[1754396586296,0.22,168.97,168.84,14.94494073]
[1754396586628,14.94494073,168.91,168.85,0.71]
[1754396586914,0.22,168.96,168.86,47.08]
[1754396587075,14.94494073,168.91,168.86,47.08]
[1754396587271,0.22,168.96,168.82,20.73214073]
[1754396587272,14.94494073,168.87,168.82,68.52214073]
[1754396587494,14.94494073,168.87,168.83,0.71]
[1754396587696,0.22,168.95,168.86,14.94494073]
[1754396587900,32.13829831,168.97,168.87,5.92171492]
[1754396588199,6.13823504,168.97,168.87,5.92171492]
[1754396588412,14.94494073,168.95,168.88,0.71]
[1754396588580,14.79105878,169.03,168.9,14.94494073]
[1754396588581,14.94494073,168.96,168.9,14.94494073]
[1754396588781,14.94494073,168.96,168.9,15.65494073]
[1754396588985,14.94494073,168.95,168.9,0.71]
[1754396589180,0.22,169.0,168.87,20.72600224]
[1754396589181,14.94494073,168.94,168.88,47.14]
[1754396589383,26.0,169.0,168.84,5.92276711]
[1754396589384,0.22,168.93,168.84,5.92276711]
[1754396589878,5.91996211,168.92,168.84,5.92276711]
[1754396590099,14.89419573,168.89,168.84,5.92276711]
[1754396590404,0.22,168.91,168.82,21.57813219]
[1754396590573,0.22,168.91,168.8,47.2]
[1754396590774,6.13959056,168.94,168.81,6.63381967]
[1754396591000,0.22,168.94,168.9,14.94494073]
[1754396591199,0.22,168.94,168.89,47.24]
[1754396591382,14.94494073,168.96,168.91,0.71]
[1754396591586,14.94494073,168.96,168.92,0.71]
[1754396591788,0.22,168.96,168.87,0.71]
[1754396592083,0.22,168.98,168.89,14.94494073]
[1754396592385,14.94494073,168.94,168.89,14.94494073]
[1754396592701,14.94494073,168.91,168.86,0.71]
[1754396593003,14.94494073,168.92,168.86,0.71]
[1754396593209,26.22,168.96,168.87,0.71]
[1754396593412,0.22,168.95,168.85,53.24236569]
[1754396593616,14.94494073,168.9,168.85,48.03]
[1754396593822,14.94494073,168.88,168.85,47.32]
[1754396593984,14.94494073,168.86,168.82,0.71]
[1754396594326,14.94494073,168.83,168.78,15.65494073]
[1754396594534,14.94494073,168.79,168.73,17.784628]
[1754396594854,26.22,168.82,168.73,17.784628]
[1754396594855,14.94494073,168.75,168.73,17.784628]
[1754396595015,15.16494073,168.74,168.73,17.784628]
[1754396595182,14.94494073,168.74,168.73,17.784628]
[1754396595381,15.16494073,168.74,168.73,17.784628]
[1754396595586,2.93746555,168.76,168.73,17.784628]
[1754396595587,0.22,168.76,168.73,17.784628]
[1754396595799,26.0,168.78,168.73,17.784628]
[1754396596001,14.94494073,168.76,168.73,17.784628]
[1754396596308,26.0,168.8,168.74,0.71]
[1754396596478,5.92301432,168.84,168.76,14.94494073]
[1754396596681,5.92230977,168.86,168.77,0.71]
[1754396597003,0.22,168.93,168.82,14.94494073]
[1754396597308,14.94494073,168.89,168.84,14.94494073]
[1754396597509,13.96903408,168.96,168.86,14.94494073]
[1754396597699,14.94494073,168.94,168.89,14.94494073]
[1754396597883,7.83047348,168.96,168.9,15.65494073]
[1754396598084,7.83047348,168.96,168.92,14.94494073]
[1754396598300,0.22,169.01,168.93,0.71]
[1754396598496,5.91645959,169.02,168.93,0.71]
[1754396598704,21.59438438,168.99,168.93,0.71]
[1754396598903,21.59438438,168.99,168.93,21.59438438]
[1754396599106,10.0,169.08,168.88,26.0]
[1754396599107,21.59438438,169.01,168.88,41.10621557]
[1754396599426,21.59438438,168.98,168.92,21.59438438]
[1754396599615,21.59438438,168.98,168.89,47.92]
[1754396599813,21.59438438,168.98,168.93,21.59438438]
[1754396600118,6.59614515,169.03,168.94,21.59438438]
[1754396600291,6.59614515,169.03,168.9,5.92066311]
[1754396600493,15.10621557,169.02,168.9,5.92066311]
[1754396600822,5.91614515,169.03,168.82,29.61728478]
[1754396600823,21.59438438,168.91,168.89,47.88]
[1754396601000,0.68,168.91,168.85,27.51680072]
[1754396601197,21.59438438,168.91,168.86,21.59438438]
[1754396601400,21.59438438,168.91,168.86,22.30438438]
[1754396601607,26.0,168.98,168.88,21.59438438]
[1754396601608,21.59438438,168.93,168.88,21.59438438]
[1754396601801,0.68,168.97,168.88,0.71]
[1754396601802,21.59438438,168.92,168.88,0.71]
[1754396602440,21.59438438,168.89,168.8,0.71]
[1754396602606,0.68,168.91,168.8,0.71]
[1754396602607,21.59438438,168.84,168.8,0.71]
[1754396602815,26.0,168.9,168.77,48.53]
[1754396603030,26.0,168.86,168.77,47.82]
[1754396603219,26.0,168.86,168.77,70.12438438]
[1754396603527,21.59438438,168.83,168.77,54.45506685]
[1754396603701,21.59438438,168.78,168.72,9.41890211]
[1754396603905,26.0,168.8,168.72,9.41890211]
[1754396603906,21.59438438,168.73,168.72,9.41890211]
[1754396604421,21.59438438,168.75,168.72,9.41890211]
[1754396604626,21.59438438,168.76,168.72,9.41890211]
[1754396604808,5.92479958,168.79,168.72,9.41890211]
[1754396605140,21.59438438,168.73,168.72,9.41890211]
[1754396605334,22.27438438,168.73,168.72,9.41890211]
[1754396606203,15.10621557,168.69,168.65,0.2]
[1754396606499,62.84276152,168.66,168.65,0.2]
[1754396606701,21.59438438,168.59,168.56,0.71]
[1754396606923,0.68,168.68,168.56,21.47408976]
[1754396607131,0.68,168.68,168.57,0.71]
[1754396607307,21.59438438,168.58,168.52,0.71]
[1754396607508,0.68,168.62,168.52,0.71]
[1754396607707,21.59438438,168.57,168.52,0.71]
[1754396607903,0.68,168.66,168.54,21.59438438]
[1754396608102,21.59438438,168.59,168.53,22.30438438]
[1754396608332,21.59438438,168.58,168.53,6.64363921]
[1754396608516,21.59438438,168.59,168.54,0.71]
[1754396608714,21.59438438,168.59,168.55,0.71]
[1754396608911,26.0,168.65,168.56,22.25438438]
[1754396609133,26.0,168.67,168.56,0.66]
[1754396609335,21.59438438,168.63,168.58,21.59438438]
[1754396609550,21.59438438,168.63,168.51,26.0]
[1754396609551,21.59438438,168.59,168.44,0.66]
[1754396609718,21.59438438,168.48,168.44,0.66]
[1754396609911,21.59438438,168.48,168.45,0.66]
[1754396610231,21.59438438,168.48,168.41,9.41890211]
[1754396610232,0.7,168.54,168.41,10.07890211]
[1754396610532,0.7,168.58,168.47,21.59438438]
[1754396610732,0.7,168.61,168.48,0.66]
[1754396611029,6.62982105,168.64,168.48,0.66]
[1754396611208,26.0,168.59,168.48,0.66]
[1754396611407,21.59438438,168.5,168.44,0.66]
[1754396611803,0.7,168.54,168.42,6.5975371]
[1754396612009,21.59438438,168.45,168.42,0.66]
[1754396612217,21.59438438,168.44,168.41,9.41890211]
[1754396612417,21.59438438,168.47,168.42,0.66]
[1754396612754,10.0,168.58,168.42,0.66]
[1754396612755,73.98,168.59,168.46,21.59438438]
[1754396613046,21.59438438,168.51,168.47,0.66]
[1754396613210,0.7,168.59,168.48,21.59438438]
[1754396613416,10.0,168.48,168.2,10.0]
[1754396613620,6.52144023,168.58,168.11,69.63123695]
[1754396613621,26.0,168.44,168.28,21.59438438]
[1754396613826,15.24837714,168.39,168.28,21.59438438]
[1754396614028,15.24837714,168.39,168.18,5.94601022]
[1754396614029,21.59438438,168.33,168.26,21.59438438]
[1754396614232,0.7,168.36,168.27,21.59438438]
[1754396614443,21.59438438,168.28,168.17,14.86590374]
[1754396614666,22.29438438,168.31,168.18,50.2]
[1754396614841,21.59438438,168.32,168.25,21.59438438]
[1754396615240,0.7,168.34,168.21,50.24]
[1754396615539,21.59438438,168.37,168.3,21.59438438]
[1754396615742,0.7,168.38,168.29,22.25438438]
[1754396615743,21.59438438,168.36,168.29,22.25438438]
[1754396616143,21.59438438,168.36,168.3,5.94177064]
[1754396616452,21.59438438,168.37,168.3,27.53615502]
[1754396616658,21.59438438,168.37,168.31,0.66]
[1754396616860,0.7,168.41,168.32,21.59438438]
[1754396616861,21.59438438,168.39,168.32,21.59438438]
[1754396617028,21.59438438,168.39,168.33,22.25438438]
[1754396617554,3.09505139,168.46,168.35,21.59438438]
[1754396617555,21.59438438,168.41,168.35,21.59438438]
[1754396617727,0.7,168.43,168.37,21.59438438]
[1754396617728,21.59438438,168.43,168.37,21.59438438]
[1754396617927,21.59438438,168.44,168.37,21.59438438]
[1754396618127,27.53122448,168.44,168.38,21.59438438]
[1754396618352,21.59438438,168.44,168.38,21.59438438]
[1754396618652,7.55798621,168.47,168.38,0.66]
[1754396619052,13.49385675,168.47,168.4,21.59438438]
[1754396619359,21.59438438,168.46,168.4,21.59438438]
[1754396619541,29.15237059,168.47,168.41,21.59438438]
[1754396620131,7.55798621,168.47,168.43,27.53156896]
[1754396620430,21.59438438,168.51,168.45,21.59438438]
[1754396620739,21.59438438,168.49,168.43,21.59438438]
[1754396620934,21.59438438,168.49,168.39,14.84582576]
[1754396620935,21.59438438,168.49,168.44,21.59438438]
[1754396621145,21.59438438,168.52,168.46,21.59438438]
[1754396621348,0.7,168.55,168.46,21.59438438]
[1754396621560,0.7,168.55,168.48,21.59438438]
[1754396621561,21.59438438,168.53,168.48,21.59438438]
[1754396621733,5.93221952,168.58,168.49,21.59438438]
[1754396621931,5.93221952,168.58,168.5,21.59438438]
[1754396621932,21.59438438,168.55,168.5,21.59438438]
[1754396622139,21.59438438,168.58,168.53,27.52777155]
[1754396622331,21.59438438,168.58,168.53,50.62]
[1754396622645,29.15237138,168.59,168.54,0.66]
[1754396623155,29.15237138,168.59,168.54,21.59438438]
[1754396623361,7.557987,168.59,168.55,22.25438438]
[1754396623541,7.557987,168.59,168.57,21.59438438]
[1754396623738,21.59438438,168.62,168.57,22.25438438]
[1754396623961,21.59438438,168.63,168.57,22.25438438]
[1754396624557,21.59438438,168.63,168.58,27.52628614]
[1754396624739,21.59438438,168.64,168.59,21.59438438]
[1754396624934,0.7,168.7,168.61,21.59438438]
[1754396625161,0.7,168.7,168.63,21.59438438]
[1754396625343,21.59438438,168.69,168.64,21.59438438]
[1754396625647,6.62662834,168.73,168.65,22.25438438]
[1754396625859,21.59438438,168.71,168.66,21.59438438]
[1754396626159,21.59438438,168.71,168.67,49.8]
[1754396626365,21.59438438,168.7,168.67,49.8]
[1754396626553,7.95069133,168.74,168.68,0.66]
[1754396626865,6.62490415,168.78,168.69,21.59438438]
[1754396627070,21.59438438,168.78,168.72,21.59438438]
[1754396627261,3.08932946,168.82,168.73,21.59438438]
[1754396627462,21.59438438,168.8,168.74,71.37438438]
[1754396627660,21.59438438,168.8,168.75,0.66]
[1754396627661,4.2100375,168.79,168.75,0.66]
[1754396627868,4.2100375,168.79,168.76,49.76]
[1754396628169,4.2100375,168.78,168.76,50.42]
[1754396628473,21.59438438,168.8,168.76,50.42]
[1754396628638,4.21341926,168.79,168.76,50.42]
[1754396628970,4.21341926,168.79,168.77,0.66]
[1754396629176,5.92330542,168.83,168.59,20.76042469]
[1754396629177,25.80780364,168.78,168.59,20.76042469]
[1754396629474,26.0,168.75,168.61,21.59438438]
[1754396629642,4.91341926,168.74,168.65,21.59438438]
[1754396629843,4.21341926,168.73,168.69,21.59438438]
[1754396630045,4.21341926,168.73,168.72,21.59438438]
[1754396630273,21.59438438,168.79,168.72,71.71438438]
[1754396630568,4.20651633,168.78,168.75,21.59438438]
[1754396630772,21.59438438,168.81,168.76,21.59438438]
[1754396631073,21.59438438,168.82,168.74,5.92627711]
[1754396631254,21.59438438,168.79,168.73,21.59438438]
[1754396631573,21.59438438,168.79,168.74,50.04]
[1754396631767,21.62438438,168.79,168.74,50.04]
[1754396632272,21.59438438,168.77,168.74,50.04]
[1754396632449,21.59438438,168.76,168.74,50.04]
[1754396632870,4.20830882,168.75,168.74,50.04]
[1754396633057,21.59438438,168.75,168.74,50.04]
[1754396633260,4.20860173,168.75,168.74,50.04]
[1754396633450,21.59438438,168.76,168.74,50.04]
[1754396633648,4.20860173,168.75,168.74,50.04]
[1754396633848,0.03,168.79,168.74,78.22060734]
[1754396634175,0.03,168.79,168.77,21.59438438]
[1754396634670,0.03,168.79,168.78,5.92487261]
[1754396634884,0.03,168.79,168.78,28.17925699]
[1754396635250,0.03,168.79,168.78,5.92487261]
[1754396635476,0.03,168.79,168.78,22.25438438]
[1754396635693,0.03,168.79,168.78,0.66]
[1754396635852,0.03,168.79,168.78,22.25438438]
[1754396636052,0.7,168.91,168.78,37.36059995]
[1754396636273,21.59438438,168.92,168.86,21.59438438]
[1754396636600,5.9193214,168.94,168.87,5.92171492]
[1754396636601,4.21581431,168.91,168.87,5.92171492]
[1754396636761,15.04812266,168.92,168.86,70.83014275]
[1754396637186,0.7,168.95,168.88,15.04812266]
[1754396637360,15.04812266,168.94,168.89,15.04812266]
[1754396637564,15.04812266,168.95,168.89,15.04812266]
[1754396637881,0.7,168.98,168.89,15.04812266]
[1754396638185,0.7,168.98,168.86,70.7293457]
[1754396638186,15.04812266,168.91,168.86,49.86]
[1754396638375,15.04812266,168.88,168.86,49.86]
[1754396638583,15.04812266,168.87,168.82,49.78]
[1754396638753,0.72,168.92,168.82,72.05569269]
[1754396638958,21.62569269,168.86,168.82,49.78]
[1754396639154,21.62569269,168.83,168.82,49.78]
[1754396639382,21.62569269,168.84,168.82,49.78]
[1754396639960,21.62569269,168.83,168.82,49.78]
[1754396640159,21.62569269,168.84,168.82,49.78]
[1754396640375,0.72,168.89,168.82,49.78]
[1754396640685,26.0,168.94,168.84,21.62569269]
[1754396640686,4.214698,168.88,168.84,21.62569269]
[1754396640890,21.62569269,168.91,168.85,22.27569269]
[1754396641193,21.62569269,168.93,168.87,21.62569269]
[1754396641391,4.21587364,168.92,168.88,49.68]
[1754396641560,21.62569269,168.89,168.82,5.9234397]
[1754396641762,21.62569269,168.87,168.83,49.66]
[1754396641989,0.72,168.9,168.84,0.65]
[1754396641990,21.62569269,168.9,168.84,0.65]
[1754396642186,21.62569269,168.86,168.83,49.66]
[1754396642373,0.72,168.9,168.83,49.66]
[1754396642374,21.62569269,168.88,168.83,49.66]
[1754396642689,26.0,168.95,168.85,27.54810903]
[1754396642690,21.62569269,168.91,168.85,27.54810903]
[1754396642903,21.62569269,168.9,168.85,5.92241634]
[1754396643059,0.72,168.93,168.85,27.54810903]
[1754396643389,21.62569269,168.87,168.81,5.92365779]
[1754396643681,21.62569269,168.85,168.8,49.58]
[1754396643885,20.71879321,168.93,168.74,21.62569269]
[1754396643886,21.62569269,168.81,168.74,21.62569269]
[1754396644092,21.62569269,168.77,168.73,49.64]
[1754396644261,21.62569269,168.76,168.73,49.64]
[1754396644464,21.62569269,168.75,168.74,5.92627711]
[1754396644671,21.62569269,168.79,168.74,28.2019698]
[1754396645296,5.9242818,168.8,168.74,5.92627711]
[1754396645463,0.72,168.83,168.77,21.62569269]
[1754396645669,21.62569269,168.83,168.77,21.62569269]
[1754396645881,21.62569269,168.83,168.78,49.56]
[1754396646087,21.62569269,168.84,168.79,21.62569269]
[1754396646276,21.62569269,168.84,168.78,71.83569269]
[1754396646482,0.72,168.86,168.78,71.83569269]
[1754396646483,21.62569269,168.79,168.78,49.56]
[1754396646675,21.62569269,168.81,168.78,55.4848398]
[1754396646874,21.62569269,168.8,168.78,49.56]
[1754396647089,21.62569269,168.81,168.78,55.48476891]
[1754396647296,21.62569269,168.81,168.76,27.55099436]
[1754396647596,21.62569269,168.81,168.75,21.62569269]
[1754396647773,21.62569269,168.83,168.75,6.57584731]
[1754396647979,6.64136428,168.88,168.79,21.62569269]
[1754396648168,21.62569269,168.84,168.8,49.5]
[1754396648484,21.62569269,168.87,168.82,21.62569269]
[1754396648683,21.62569269,168.85,168.8,49.5]
[1754396648863,21.62569269,168.84,168.8,49.5]
[1754396649188,5.92066311,168.9,168.82,21.62569269]
[1754396649494,21.62569269,168.84,168.8,49.5]
[1754396649794,21.62569269,168.89,168.81,0.65]
[1754396649999,21.62569269,168.89,168.84,21.62569269]
[1754396650298,21.62569269,168.88,168.85,49.46]
[1754396650481,21.62569269,168.9,168.85,71.08569269]
[1754396650799,21.62569269,168.9,168.85,77.00795039]
[1754396650987,0.72,168.91,168.85,77.00795039]
[1754396651193,21.62569269,168.91,168.86,21.62569269]
[1754396651382,0.72,168.94,168.88,21.62569269]
[1754396651584,21.62569269,168.94,168.89,49.44]